bitfinex/quotes_ETHUSD_20220202
["timestamp","ask_amount","ask_price","bid_price","bid_amount"]
[1643775276182,0.95,2770.5,2770.4,12.08269]
[1643775278432,0.9487852,2770.5,2770.4,12.08269]
[1643775283179,0.9487852,2770.5,2770.4,11.90229]
[1643775292725,0.9487852,2770.5,2770.4,12.41729]
[1643775295582,0.9487852,2770.5,2770.4,11.90229]
[1643775295784,0.9487852,2770.5,2770.4,11.0]
[1643775297781,0.9487852,2770.5,2770.4,10.0]
[1643775297989,3.2487852,2770.5,2770.4,10.0]
[1643775298188,3.14551719,2770.5,2770.4,5.22106418]
[1643775298484,4.14556906,2770.5,2770.4,3.59377837]
[1643775298884,5.02537941,2770.5,2770.4,3.59377837]
[1643775300233,7.0270673,2770.5,2770.4,3.59377837]
[1643775302342,5.02537941,2770.5,2770.4,3.59377837]
[1643775303977,3.49984997,2770.5,2770.4,3.59377837]
[1643775306382,3.14066997,2770.5,2770.4,3.59377837]
[1643775306637,3.12864742,2770.5,2770.4,3.59377837]
[1643775309238,3.12864742,2770.5,2770.4,6.31439429]
[1643775309438,2.82864742,2770.5,2770.4,9.03501021]
[1643775309638,1.94883707,2770.5,2770.4,9.03501021]
[1643775311489,1.94883707,2770.5,2770.4,12.13897021]
[1643775311689,1.94883707,2770.5,2770.4,13.31937021]
[1643775314233,2.24883707,2770.5,2770.4,12.31937021]
[1643775316237,2.24883707,2770.5,2770.4,12.13897021]
[1643775322340,2.24779054,2770.5,2770.4,12.13897021]
[1643775324843,2.24779054,2770.5,2770.4,11.35447021]
[1643775325489,2.24779054,2770.5,2770.4,10.83947021]
[1643775336188,1.94883707,2770.5,2770.4,11.83947021]
[1643775336392,1.94883707,2770.5,2770.4,12.35447021]
[1643775336632,1.94883707,2770.5,2770.4,12.53487021]
[1643775339638,1.94883707,2770.5,2770.4,22.53487021]
[1643775341295,1.94773699,2770.5,2770.4,22.53487021]
[1643775343099,1.94773699,2770.5,2770.4,22.35447021]
[1643775346437,3.91419051,2770.5,2770.4,20.83947021]
[1643775346638,1.94773699,2770.5,2770.4,19.03783466]
[1643775346840,3.95365565,2770.5,2770.4,19.03783466]
[1643775347036,4.85602225,2770.5,2770.4,19.03783466]
[1643775347639,3.33050359,2770.5,2770.4,19.03783466]
[1643775347881,4.5559766,2770.5,2770.4,19.03783466]
[1643775348084,2.12813699,2770.5,2770.4,19.03783466]
[1643775349283,1.94773699,2770.5,2770.4,19.03783466]
[1643775350185,2.85005319,2770.5,2770.4,19.03783466]
[1643775351744,1.94773699,2770.5,2770.4,19.03783466]
[1643775353641,3.47319831,2770.5,2770.4,19.03783466]
[1643775353843,3.47320189,2770.5,2770.4,19.03783466]
[1643775354844,1.94773699,2770.5,2770.4,19.03783466]
[1643775355503,3.47323678,2770.5,2770.4,19.03783466]
[1643775355702,5.64638313,2770.5,2770.4,19.03783466]
[1643775355903,3.65363678,2770.5,2770.4,19.03783466]
[1643775356103,5.61970676,2770.5,2770.4,19.03783466]
[1643775356303,3.47323678,2770.5,2770.4,19.03783466]
[1643775356502,5.45956904,2770.5,2770.4,19.03783466]
[1643775356806,3.47323678,2770.5,2770.4,19.03783466]
[1643775357803,5.4331846,2770.5,2770.4,19.03783466]
[1643775358204,3.47323678,2770.5,2770.4,19.03783466]
[1643775360135,5.48536138,2770.5,2770.4,19.03783466]
[1643775360336,5.47253436,2770.5,2770.4,19.03783466]
[1643775360542,3.47323678,2770.5,2770.4,19.03783466]
[1643775361540,5.43455898,2770.5,2770.4,19.03783466]
[1643775361741,5.50673448,2770.5,2770.4,19.03783466]
[1643775363880,5.50568093,2770.5,2770.4,19.03783466]
[1643775365081,3.47216708,2770.5,2770.4,19.03783466]
[1643775365283,1.94668344,2770.5,2770.4,19.03783466]
[1643775366730,3.47217688,2770.5,2770.4,19.03783466]
[1643775370584,1.94668344,2770.5,2770.4,19.03783466]
[1643775371184,3.47221063,2770.5,2770.4,19.03783466]
[1643775374629,1.94668344,2770.5,2770.4,19.03783466]
[1643775374829,3.47220772,2770.5,2770.4,19.03783466]
[1643775375836,0.19844467,2770.9,2770.5,0.90221]
[1643775376038,0.19844467,2770.9,2770.6,0.515]
[1643775376233,0.19844467,2770.9,2770.6,1.944]
[1643775376433,0.19844467,2770.9,2770.8,2.72061592]
[1643775376633,0.19844467,2770.9,2770.8,6.13663184]
[1643775378990,0.19844467,2770.9,2770.8,5.95623184]
[1643775381199,2.00606088,2771.7,2770.8,5.95623184]
[1643775381200,0.1804,2771.3,2770.9,7.40215]
[1643775381404,1.04574208,2772.2,2770.9,7.40215]
[1643775381405,2.94137743,2772.3,2771.0,6.8952]
[1643775381659,0.86696208,2772.4,2771.0,6.8952]
[1643775381660,0.1804,2772.0,2771.4,2.72061592]
[1643775381846,0.01265983,2772.4,2771.5,1.515]
[1643775381847,0.1802,2772.3,2771.5,1.515]
[1643775382046,0.1802,2772.3,2771.5,1.9952]
[1643775382047,0.43408119,2772.0,2771.5,1.9952]
[1643775382247,1.52483197,2771.9,2771.7,0.90181]
[1643775382552,1.52483197,2771.9,2771.6,2.7053895]
[1643775382553,1.52483197,2771.9,2771.4,5.62153184]
[1643775382554,3.52814321,2771.9,2771.4,5.62153184]
[1643775382752,0.61286119,2772.0,2771.4,5.62153184]
[1643775382753,1.52483197,2771.8,2771.4,5.62153184]
[1643775382947,0.61286119,2772.0,2771.4,5.44123184]
[1643775382948,1.70523197,2771.9,2771.4,5.44123184]
[1643775383150,1.52483197,2771.8,2771.4,5.44123184]
[1643775384148,1.52483197,2771.8,2771.5,0.90202]
[1643775384948,1.52483197,2771.8,2771.4,7.24518184]
[1643775385151,1.52483197,2771.8,2771.4,5.44123184]
[1643775385591,1.47483197,2771.8,2771.4,5.44123184]
[1643775385793,1.47483197,2771.8,2771.4,6.34320184]
[1643775386393,1.47483197,2771.8,2771.4,5.44123184]
[1643775386596,2.17878,2771.7,2771.4,5.44123184]
[1643775386793,0.1804,2771.6,2771.4,2.72061592]
[1643775386992,0.1804,2771.6,2771.1,0.1804]
[1643775387795,1.1284,2771.8,2771.1,0.1804]
[1643775388893,1.1284,2771.8,2771.2,0.515]
[1643775389136,1.1284,2771.8,2771.4,0.90188]
[1643775390137,1.1284,2771.8,2771.4,1.8037134]
[1643775390339,1.1284,2771.8,2771.5,1.80366]
[1643775390548,1.1284,2771.8,2771.6,0.515]
[1643775390743,0.44486332,2771.8,2771.7,0.90184]
[1643775391543,0.1804,2772.0,2771.7,0.90184]
[1643775392144,0.1804,2772.0,2771.8,5.44123184]
[1643775392342,0.17878,2772.1,2771.8,5.44123184]
[1643775392343,0.35898,2772.1,2771.9,0.90181]
[1643775392543,0.35336532,2772.0,2771.9,0.90181]
[1643775392743,0.53214532,2772.0,2771.9,0.90181]
[1643775393383,0.53214532,2772.0,2771.8,5.44123184]
[1643775393587,0.48214532,2772.0,2771.8,5.44123184]
[1643775394185,0.1802,2772.1,2771.8,5.44123184]
[1643775394386,1.4222,2772.2,2771.9,0.90183]
[1643775394585,1.242,2772.2,2771.9,0.90183]
[1643775394986,1.242,2772.2,2771.8,5.44123184]
[1643775395186,0.32715217,2771.9,2771.8,5.44123184]
[1643775396633,0.31753679,2771.9,2771.8,5.44123184]
[1643775396834,0.83347003,2772.1,2771.8,5.44123184]
[1643775397035,0.83347003,2772.1,2771.9,0.00240312]
[1643775397435,0.83347003,2772.1,2772.0,2.72061592]
[1643775397637,0.83347003,2772.1,2772.0,5.44123184]
[1643775398036,0.40049901,2772.1,2772.0,5.44123184]
[1643775399837,0.79858421,2772.3,2772.0,5.44123184]
[1643775400787,0.38805803,2772.2,2772.0,5.44123184]
[1643775401185,0.28805803,2772.2,2772.1,0.90178]
[1643775401585,0.1802,2772.5,2772.1,0.90178]
[1643775402386,0.7190435,2772.4,2772.1,0.90178]
[1643775402790,0.7190435,2772.4,2772.2,5.44123184]
[1643775402993,0.33797349,2772.3,2772.2,3.81490524]
[1643775403990,0.33797349,2772.3,2772.2,3.81361478]
[1643775406856,1.3826,2772.6,2772.2,3.81361478]
[1643775407052,1.3826,2772.6,2772.3,0.90172]
[1643775407053,1.88946635,2772.6,2772.3,0.90172]
[1643775407452,1.2024,2772.6,2772.3,0.90172]
[1643775407752,0.42906901,2772.5,2772.3,0.90172]
[1643775407986,0.42906901,2772.5,2772.3,1.08192]
[1643775408185,0.42906901,2772.5,2772.4,3.81361478]
[1643775409785,0.37906901,2772.5,2772.4,3.81361478]
[1643775411632,0.76750407,2772.9,2772.5,0.90163]
[1643775411832,1.52451184,2772.8,2772.5,0.90163]
[1643775412032,0.66750407,2772.9,2772.5,0.90163]
[1643775412634,1.52450461,2772.8,2772.5,0.90163]
[1643775412834,1.89992223,2772.8,2772.5,0.90163]
[1643775413133,0.37541762,2772.8,2772.4,1.09299886]
[1643775413333,0.37541762,2772.8,2772.3,0.1802]
[1643775413534,0.37541762,2772.8,2772.6,3.81361478]
[1643775415135,0.1802,2773.0,2772.6,3.81361478]
[1643775415389,1.4284,2773.1,2772.7,0.515]
[1643775415588,1.2482,2773.1,2772.7,0.6952]
[1643775415790,0.35898,2773.3,2772.7,0.6952]
[1643775415986,1.52430168,2773.2,2772.7,0.6952]
[1643775416186,2.29333746,2773.2,2772.7,0.6952]
[1643775416390,0.32080986,2773.0,2772.7,0.6952]
[1643775416593,0.32080986,2773.0,2772.7,1.9952]
[1643775417186,0.76903578,2773.2,2772.8,0.90146]
[1643775417486,0.30898,2773.6,2772.9,0.515]
[1643775417688,1.52417951,2773.5,2772.9,0.515]
[1643775417891,1.52417951,2773.5,2772.6,5.61652478]
[1643775417892,0.3712574,2773.4,2772.6,3.81361478]
[1643775418093,0.36158194,2772.7,2772.6,3.81361478]
[1643775418486,0.17878,2773.0,2772.6,3.81361478]
[1643775418689,0.67644324,2773.1,2772.6,1.09299886]
[1643775418890,0.1802,2773.0,2772.5,0.90157]
[1643775419140,0.1802,2773.0,2772.9,2.72061592]
[1643775419334,0.85664324,2773.1,2772.9,2.72061592]
[1643775419534,0.41135159,2773.0,2772.9,2.72061592]
[1643775419733,1.93565669,2773.0,2772.9,2.72061592]
[1643775419934,1.5243051,2773.0,2772.9,2.72061592]
[1643775420137,0.1802,2773.3,2772.9,2.72061592]
[1643775420338,1.52425177,2773.2,2772.9,2.72061592]
[1643775420539,4.5910267,2773.7,2772.9,2.72061592]
[1643775420540,0.1802,2773.6,2772.9,2.72061592]
[1643775420741,0.1802,2773.4,2772.9,3.02061592]
[1643775420941,1.5242507,2773.3,2772.9,3.02061592]
[1643775422244,1.5242507,2773.3,2772.9,3.92204592]
[1643775422544,0.33636525,2773.0,2772.9,3.02061592]
[1643775422742,0.33636525,2773.0,2772.9,2.72061592]
[1643775422985,1.86061595,2773.0,2772.9,1.0946306]
[1643775423587,0.33636525,2773.0,2772.9,1.0946306]
[1643775423886,1.86067634,2773.0,2772.9,1.0946306]
[1643775424187,1.86067634,2773.0,2772.8,0.3]
[1643775424408,0.33636525,2773.0,2772.9,2.17163639]
[1643775425395,0.99372793,2773.4,2772.9,2.17163639]
[1643775425594,1.52426191,2773.3,2772.9,2.17163639]
[1643775426672,1.52426191,2773.3,2773.0,1.92617172]
[1643775426862,0.1802,2773.6,2773.1,0.515]
[1643775427064,1.52406141,2773.5,2773.1,0.515]
[1643775427262,0.1802,2774.1,2773.1,0.815]
[1643775427463,1.52395853,2774.0,2773.2,2.01206136]
[1643775427661,1.52395853,2774.0,2773.5,0.90118]
[1643775427862,1.52395853,2774.0,2773.6,0.515]
[1643775428060,1.52395853,2773.9,2773.7,0.1802]
[1643775428261,0.1802,2774.5,2773.8,0.515]
[1643775428464,0.6534315,2774.6,2773.9,0.1802]
[1643775428465,1.52375453,2774.4,2773.9,0.1802]
[1643775428660,1.52375453,2774.3,2774.0,0.515]
[1643775428864,1.52375453,2774.2,2774.0,0.815]
[1643775429259,1.52375453,2774.1,2774.0,0.815]
[1643775429768,0.1802,2774.6,2774.3,1.09299886]
[1643775429962,1.52374109,2774.5,2774.3,1.60799886]
[1643775430184,1.92914748,2774.5,2774.3,1.60799886]
[1643775430395,1.52374109,2774.4,2774.3,1.60799886]
[1643775431300,1.52374109,2774.6,2774.3,1.60799886]
[1643775431502,1.52374109,2774.5,2774.3,1.60799886]
[1643775431699,1.52374109,2774.4,2774.3,1.60799886]
[1643775431900,0.33520016,2774.5,2774.3,1.60799886]
[1643775432101,1.52374109,2774.4,2774.3,1.60799886]
[1643775434345,1.52367733,2774.4,2774.3,1.60799886]
[1643775434745,1.52367733,2774.4,2774.3,2.68663639]
[1643775435345,1.52367733,2774.4,2774.3,2.98663639]
[1643775436549,0.33520016,2774.5,2774.3,2.98663639]
[1643775436949,0.81393474,2774.7,2774.3,1.89363753]
[1643775437146,0.81393474,2774.7,2774.5,1.09299886]
[1643775437347,1.52359037,2774.6,2774.5,1.09299886]
[1643775437748,0.81393474,2774.7,2774.5,1.39299886]
[1643775437990,1.52359309,2774.6,2774.5,1.39299886]
[1643775438191,1.97184016,2774.6,2774.5,1.39299886]
[1643775438397,0.4482505,2774.6,2774.5,1.39299886]
[1643775438597,1.97184282,2774.6,2774.5,1.39299886]
[1643775438800,1.97184282,2774.6,2774.5,1.09299886]
[1643775439800,1.97184282,2774.6,2774.5,1.39299886]
[1643775439999,1.97184282,2774.6,2774.5,2.47163639]
[1643775441500,1.97184608,2774.6,2774.5,2.47163639]
[1643775442140,0.4482505,2774.6,2774.5,2.47163639]
[1643775442546,1.97184293,2774.6,2774.5,2.47163639]
[1643775442952,1.97184293,2774.6,2774.5,0.84645105]
[1643775443247,0.4482505,2774.6,2774.5,0.84645105]
[1643775445048,0.4482505,2774.6,2774.3,0.51741836]
[1643775445249,0.4482505,2774.6,2774.4,0.84645105]
[1643775448122,6.79079874,2774.5,2774.3,0.00241836]
[1643775448312,8.13601529,2774.4,2774.3,0.00241836]
[1643775448507,2.01621529,2774.4,2774.3,0.00241836]
[1643775449137,2.19499529,2774.4,2774.3,0.00241836]
[1643775449543,6.63332679,2774.4,2773.4,0.43261133]
[1643775449746,6.9752501,2773.5,2773.4,0.00241133]
[1643775449940,9.76795924,2773.5,2773.4,0.00241133]
[1643775450139,1.6437501,2773.5,2773.4,0.00241133]
[1643775450339,3.16796975,2773.5,2773.4,0.00241133]
[1643775450948,1.8225301,2773.5,2773.4,0.00241133]
[1643775451144,2.25843431,2773.5,2773.4,0.00241133]
[1643775451547,2.99710626,2773.5,2773.4,0.00241133]
[1643775451945,5.14628103,2773.5,2773.4,0.00241133]
[1643775453211,5.44628103,2773.5,2773.4,0.00241133]
[1643775453609,5.14628103,2773.5,2773.4,0.00241133]
[1643775454206,2.99710626,2773.5,2773.4,0.00241133]
[1643775455007,1.47290205,2773.5,2773.4,0.00241133]
[1643775456412,1.29412205,2773.5,2773.4,0.00241133]
[1643775456652,0.42555069,2773.7,2773.4,0.85021133]
[1643775456852,0.42555069,2773.7,2773.5,2.10939075]
[1643775457047,0.42555069,2773.7,2773.6,1.99439938]
[1643775457249,0.42555069,2773.7,2773.6,0.1801]
[1643775457651,0.42555069,2773.7,2773.6,1.1801]
[1643775457847,0.42555069,2773.7,2773.6,0.7801]
[1643775458048,0.42555069,2773.7,2773.6,0.4801]
[1643775460402,2.3629,2774.3,2773.6,0.4801]
[1643775460608,2.3629,2774.3,2773.7,0.1802]
[1643775460609,1.52372735,2774.2,2773.7,0.1802]
[1643775461007,1.52372735,2774.2,2773.6,0.4802]
[1643775461211,1.52372735,2774.2,2773.6,0.1802]
[1643775461406,0.38157714,2773.8,2773.6,0.1802]
[1643775464751,0.38157714,2773.8,2773.5,0.1802]
[1643775464953,0.38157714,2773.8,2773.4,0.1802]
[1643775465350,0.38157714,2773.8,2773.5,0.9012]
[1643775465551,0.38157714,2773.8,2773.6,0.1802]
[1643775468489,0.38157714,2773.8,2773.5,2.3814]
[1643775468693,11.72433639,2774.7,2773.6,1.95329363]
[1643775468897,0.1802,2774.6,2773.8,0.90112]
[1643775469091,0.1802,2774.6,2773.9,0.515]
[1643775469295,1.52364358,2774.5,2773.9,0.515]
[1643775469489,1.52364358,2774.5,2773.9,0.6952]
[1643775469889,0.3379384,2774.1,2773.9,0.6952]
[1643775470091,0.3379384,2774.1,2774.0,0.90104]
[1643775470292,0.3379384,2774.1,2774.0,1.71604]
[1643775470496,0.94433756,2774.4,2774.0,1.71604]
[1643775470695,1.52358258,2774.3,2774.0,1.71604]
[1643775470895,0.1802,2774.8,2774.0,1.71604]
[1643775471098,1.5235778,2774.7,2774.0,1.71604]
[1643775471741,0.81528589,2774.3,2774.0,0.815]
[1643775471942,1.88515897,2774.2,2774.0,0.815]
[1643775472142,1.5235778,2774.1,2774.0,0.815]
[1643775472346,0.36158117,2774.2,2774.0,0.815]
[1643775472744,0.36158117,2774.2,2774.0,0.515]
[1643775472950,1.52372679,2774.1,2773.4,2.80234]
[1643775473146,1.52372679,2774.1,2773.6,0.3]
[1643775473341,1.52372679,2774.1,2773.5,1.0]
[1643775473744,1.52372679,2774.1,2773.5,0.3]
[1643775474147,1.52372679,2774.1,2773.5,1.0]
[1643775474343,1.52372679,2774.1,2773.5,0.3]
[1643775474544,1.52372679,2774.1,2773.6,0.90117]
[1643775474745,0.99548589,2774.3,2773.6,1.20117]
[1643775474746,0.44867077,2774.0,2773.6,1.20117]
[1643775476705,0.44867077,2774.0,2773.7,0.515]
[1643775478106,0.44867077,2774.0,2773.7,0.6952]
[1643775478706,0.01247313,2774.4,2773.7,1.8962914]
[1643775478907,1.52366699,2774.3,2773.9,0.9011]
[1643775479154,0.1802,2774.7,2774.0,3.06076808]
[1643775479359,1.52351776,2774.6,2774.0,3.06076808]
[1643775479553,1.52351776,2774.6,2774.1,1.0]
[1643775479754,1.52351776,2774.6,2774.2,0.515]
[1643775479954,1.52351776,2774.6,2774.2,2.49309377]
[1643775479955,0.33913196,2774.5,2774.2,2.49309377]
[1643775480156,0.33913196,2774.5,2774.2,2.97329377]
[1643775480354,0.33913196,2774.5,2774.3,1.0]
[1643775480559,0.33913196,2774.5,2774.4,0.515]
[1643775482662,1.86267134,2774.5,2774.4,0.515]
[1643775485898,3.83032527,2774.5,2774.4,0.515]
[1643775486098,3.83032527,2774.5,2773.8,1.98229]
[1643775486298,1.52353938,2774.4,2773.8,1.98229]
[1643775486742,0.81458506,2774.1,2773.8,1.98229]
[1643775487048,0.34839614,2774.0,2773.8,1.98229]
[1643775487645,0.34839614,2774.0,2773.6,3.6043236]
[1643775487646,3.48500713,2773.9,2773.6,1.80224]
[1643775487847,1.52382167,2773.8,2773.5,0.1802]
[1643775488045,1.93461389,2773.7,2773.2,0.1802]
[1643775488245,1.52382167,2773.6,2773.2,0.1802]
[1643775488443,0.4375416,2773.5,2773.0,0.1802]
[1643775488643,0.73806274,2773.4,2772.9,0.1802]
[1643775488841,0.73806274,2773.4,2773.0,0.90139]
[1643775489042,0.39235846,2773.2,2773.1,0.1802]
[1643775492612,1.20839833,2773.2,2773.1,0.1802]
[1643775494008,1.20839833,2773.2,2772.6,0.1802]
[1643775494546,1.20839833,2773.2,2772.6,1.1802]
[1643775494746,0.81603987,2773.2,2772.6,0.1802]
[1643775495352,0.89536909,2772.7,2772.6,0.1802]
[1643775495559,0.89536909,2772.7,2772.3,2.05308]
[1643775495560,1.07330313,2772.7,2772.5,0.1802]
[1643775495758,0.43743191,2772.6,2772.4,0.1802]
[1643775495953,0.43743191,2772.6,2771.9,0.1802]
[1643775496457,0.34535761,2772.1,2771.9,0.1802]
[1643775497254,1.07330313,2772.7,2771.9,0.1802]
[1643775497460,0.77834873,2772.2,2771.9,0.1802]
[1643775497902,0.17878,2772.7,2771.9,0.1802]
[1643775499103,0.6784769,2772.3,2771.9,0.1802]
[1643775499303,0.35129299,2772.2,2771.9,0.1802]
[1643775501110,0.17878,2772.7,2771.9,0.1802]
[1643775501510,2.10371348,2772.7,2771.9,0.1802]
[1643775501752,2.07907761,2772.7,2771.9,0.1802]
[1643775501952,1.3361,2772.8,2772.0,0.90173]
[1643775502152,1.3361,2772.8,2772.0,1.20173]
[1643775502351,0.36012242,2772.3,2772.0,1.20173]
[1643775502550,0.36012242,2772.3,2772.1,0.1802]
[1643775508506,0.36012242,2772.3,2772.2,0.00234726]
[1643775510569,0.36012242,2772.3,2772.2,0.00101039]
[1643775516657,0.1802,2772.7,2772.2,0.00101039]
[1643775516864,1.1559,2772.8,2772.3,0.6952]
[1643775517861,1.59309724,2772.8,2772.4,0.90155]
[1643775518062,0.43719724,2772.8,2772.5,0.6952]
[1643775518268,1.11684119,2772.8,2772.5,0.6952]
[1643775518463,1.11684119,2772.8,2772.5,0.1802]
[1643775518764,1.11684119,2772.8,2772.2,0.1802]
[1643775519365,0.34810577,2772.3,2772.2,0.1802]
[1643775520169,0.34810577,2772.3,2772.1,0.1802]
[1643775520403,1.24601749,2772.3,2772.0,0.1802]
[1643775521608,0.34810577,2772.3,2772.0,0.1802]
[1643775526063,0.34810577,2772.3,2771.9,1.80336]
[1643775528199,0.1802,2772.7,2771.9,1.80336]
[1643775528409,1.1338,2772.8,2772.0,0.515]
[1643775529401,1.1338,2772.8,2772.1,0.1802]
[1643775529600,1.1338,2772.8,2772.2,0.515]
[1643775529801,0.1802,2773.2,2772.4,0.9015]
[1643775530005,3.6028,2773.3,2772.5,0.6952]
[1643775530006,0.1802,2773.3,2772.5,0.6952]
[1643775530201,0.1802,2773.6,2772.6,0.515]
[1643775530401,1.1981,2773.7,2772.7,0.1802]
[1643775530603,1.52401594,2773.6,2772.8,0.515]
[1643775530806,0.40641894,2773.3,2772.9,0.9012745]
[1643775531007,0.40641894,2773.3,2773.0,0.9952]
[1643775531404,1.1981,2773.7,2773.0,0.9952]
[1643775531405,1.1981,2773.7,2773.2,0.90129]
[1643775531666,0.1802,2773.9,2773.3,0.515]
[1643775531866,1.52390736,2773.8,2773.3,0.515]
[1643775532267,2.19388829,2773.7,2773.3,0.515]
[1643775532469,1.52390736,2773.6,2773.3,0.515]
[1643775532667,0.79194739,2773.5,2773.3,0.515]
[1643775534669,0.32160365,2773.7,2773.3,0.515]
[1643775534872,1.52394224,2773.6,2773.3,0.515]
[1643775535074,0.32160365,2773.7,2773.3,0.515]
[1643775535508,1.52394425,2773.6,2773.3,0.515]
[1643775535713,1.89713639,2773.5,2773.3,0.515]
[1643775535909,1.52394425,2773.4,2773.3,0.515]
[1643775536109,3.48648746,2773.4,2772.8,0.1802]
[1643775536313,1.52394425,2773.3,2772.9,0.515]
[1643775536812,0.83281725,2773.6,2772.9,1.41643]
[1643775537009,1.52407902,2773.5,2772.9,1.41643]
[1643775537610,0.37790515,2773.4,2772.9,1.41643]
[1643775537814,0.37790515,2773.4,2772.9,2.6177416]
[1643775538112,0.37790515,2773.4,2773.0,1.80262]
[1643775538310,0.37790515,2773.4,2773.1,0.515]
[1643775539149,0.37790515,2773.4,2773.2,0.9013]
[1643775540453,0.37790515,2773.4,2773.1,0.515]
[1643775542456,1.52409806,2773.3,2773.1,0.515]
[1643775542655,0.37790515,2773.4,2773.1,0.515]
[1643775543611,0.83281725,2773.6,2773.1,0.515]
[1643775543811,0.83281725,2773.6,2773.2,0.90134]
[1643775544013,0.83281725,2773.6,2773.2,1.41634]
[1643775544408,1.52399173,2773.5,2773.2,1.41634]
[1643775544810,0.4104918,2773.3,2773.2,1.41634]
[1643775553736,0.4104918,2773.3,2773.2,0.90134]
[1643775555955,0.83281725,2773.6,2773.2,0.90134]
[1643775556360,0.83281725,2773.6,2773.3,0.515]
[1643775556558,0.1802,2774.2,2773.3,2.79766]
[1643775556762,1.52380875,2774.1,2773.5,0.9011]
[1643775556964,1.52380875,2774.1,2773.6,0.6952]
[1643775556965,1.9312935,2774.1,2773.6,0.6952]
[1643775557159,0.40748475,2774.1,2773.6,1.89621]
[1643775557359,8.40518556,2774.6,2773.6,1.89621]
[1643775557561,1.52366684,2774.5,2773.6,1.89621]
[1643775558011,1.52260155,2774.5,2773.6,2.7972737]
[1643775558211,1.52260155,2774.5,2773.7,0.90107]
[1643775558415,1.92706186,2774.5,2773.8,0.515]
[1643775558612,0.40446031,2774.5,2773.8,0.515]
[1643775558813,0.40446031,2774.5,2773.8,0.815]
[1643775560013,0.40446031,2774.5,2773.9,0.9010053]
[1643775560213,0.40446031,2774.5,2774.0,1.41599]
[1643775560519,0.17878,2774.9,2774.0,1.41599]
[1643775560716,0.1802,2775.0,2774.1,0.1802]
[1643775560919,0.1802,2775.0,2774.2,0.515]
[1643775561519,0.33256809,2774.4,2774.3,0.90098]
[1643775561751,0.33256809,2774.4,2774.3,1.41598]
[1643775562955,0.33256809,2774.4,2774.3,0.515]
[1643775563554,0.33256809,2774.4,2774.2,0.77193001]
[1643775563756,0.33256809,2774.4,2774.3,0.515]
[1643775564157,2.64539242,2774.4,2773.9,1.80211]
[1643775564359,2.64539242,2774.4,2773.5,0.1802]
[1643775564360,0.01296252,2774.0,2773.5,0.1802]
[1643775564555,0.44557778,2773.9,2773.5,0.1802]
[1643775564761,0.44557778,2773.9,2773.3,3.3239]
[1643775564762,0.44557778,2773.9,2773.3,0.1802]
[1643775564955,0.44557778,2773.9,2773.2,5.4662]
[1643775565154,0.31889091,2773.4,2773.2,0.515]
[1643775565912,0.31889091,2773.4,2773.3,1.8025]
[1643775567512,0.91300707,2773.6,2773.3,1.8025]
[1643775567714,0.01296252,2774.0,2773.3,1.8025]
[1643775568512,0.32524783,2773.5,2773.3,1.8025]
[1643775569163,0.32524783,2773.5,2773.4,0.515]
[1643775569564,0.01296252,2774.0,2773.4,0.515]
[1643775569764,0.01296252,2774.0,2773.5,0.90118]
[1643775569973,1.62378,2774.2,2773.6,0.515]
[1643775569974,1.145,2774.2,2773.6,0.515]
[1643775570768,0.39766905,2773.7,2773.6,0.515]
[1643775570971,0.39766905,2773.7,2773.6,1.41616]
[1643775571368,1.145,2774.2,2773.6,1.41616]
[1643775572668,0.77956932,2774.1,2773.6,1.41616]
[1643775573103,0.41840724,2773.7,2773.6,1.41616]
[1643775575610,0.77956932,2774.1,2773.6,1.41616]
[1643775576850,0.42918085,2774.0,2773.6,1.41616]
[1643775578756,1.52378946,2773.9,2773.6,1.41616]
[1643775579358,1.52378946,2773.9,2773.8,0.00224871]
[1643775579359,3.39888212,2773.9,2773.8,0.00224871]
[1643775579559,1.52378946,2773.9,2773.8,0.00224871]
[1643775580612,3.4685783,2773.9,2773.8,0.00224871]
[1643775580912,1.52378946,2773.9,2773.8,0.00224871]
[1643775583614,0.85427885,2773.5,2773.4,0.1802]
[1643775583812,1.2113246,2773.5,2773.4,0.1802]
[1643775584459,1.2113246,2773.5,2772.8,0.515]
[1643775584460,5.03540516,2773.5,2772.8,0.515]
[1643775584660,5.03540516,2773.5,2772.0,3.72761579]
[1643775584661,3.71281689,2773.4,2772.0,2.82472613]
[1643775584855,0.73153875,2772.4,2771.8,3.13528966]
[1643775585055,1.71217431,2773.3,2771.8,3.13528966]
[1643775585056,0.91050548,2773.1,2771.8,0.00148966]
[1643775585261,0.91050548,2773.1,2771.7,4.3258]
[1643775585262,3.70454806,2773.0,2771.7,4.3258]
[1643775585469,1.52434806,2772.9,2771.7,3.1338]
[1643775585662,1.70312806,2772.9,2771.7,3.1338]
[1643775585858,0.33996413,2772.3,2771.8,1.0]
[1643775586261,0.33996413,2772.3,2771.8,2.80327]
[1643775586460,0.33996413,2772.3,2771.8,1.80327]
[1643775586661,0.33996413,2772.3,2771.9,1.0]
[1643775586858,0.33996413,2772.3,2772.0,0.90166]
[1643775587061,0.75091228,2772.4,2772.0,0.90166]
[1643775587261,1.2324,2772.8,2772.0,0.90166]
[1643775588509,1.13913884,2772.4,2772.0,0.90166]
[1643775590711,1.13913884,2772.4,2772.0,1.8032651]
[1643775591022,1.13913884,2772.4,2772.1,1.80326]
[1643775591212,1.13913884,2772.4,2772.1,2.80326]
[1643775591410,0.40589129,2772.4,2772.1,2.80326]
[1643775592256,0.40589129,2772.4,2772.2,0.1803]
[1643775592457,0.40589129,2772.4,2772.3,0.90159]
[1643775593957,1.2324,2772.8,2772.3,0.90159]
[1643775594262,1.1909,2773.1,2772.6,0.90146]
[1643775594459,0.1802,2773.4,2772.6,0.90146]
[1643775594460,1.3806,2773.4,2772.6,0.90146]
[1643775594658,1.3806,2773.4,2772.7,0.515]
[1643775595510,0.90048376,2772.8,2772.7,0.515]
[1643775595713,1.33738661,2772.8,2772.7,0.515]
[1643775596118,0.90048376,2772.8,2772.7,0.515]
[1643775598215,0.39740588,2772.9,2772.7,0.515]
[1643775599154,1.3806,2773.4,2772.8,0.90146]
[1643775599358,0.77851777,2773.0,2772.8,0.90146]
[1643775600562,0.44985169,2772.9,2772.8,0.90146]
[1643775600759,1.2004,2773.4,2772.8,0.90146]
[1643775601761,1.07634054,2773.2,2772.8,0.90146]
[1643775602761,1.07634054,2773.2,2772.8,1.20146]
[1643775603816,1.07634054,2773.2,2772.8,0.90146]